fUSD/lending_fUSD_20240214
["ID","MTS","AMOUNT","RATE_DAILY","PERIOD"]
[313978958,1707903050804,-150.0,0.00027862,2]
[313978960,1707903050816,-150.0,0.00027865,2]
[313978962,1707903050825,-364.13,0.00027872,2]
[313978964,1707903050835,-150.0,0.00027876,2]
[313978965,1707903050845,-150.0,0.00027878,2]
[313978967,1707903050854,-150.0,0.00027884,2]
[313978969,1707903050863,-150.0,0.00027885,2]
[313978971,1707903050873,-150.0,0.00027889,2]
[313978984,1707903051011,-150.0,0.00027891,2]
[313978986,1707903051023,-20805.89889068,0.000279,2]
[313978987,1707903051033,-1000.0,0.000279,2]
[313978988,1707903051044,-200.0,0.000279,10]
[313978989,1707903051053,-150.0,0.00027901,2]
[313978990,1707903051063,-150.0,0.00027909,2]
[313978991,1707903051073,-150.0,0.00027919,2]
[313978992,1707903051083,-150.0,0.00027923,2]
[313978993,1707903051093,-150.0,0.00027924,2]
[313978994,1707903051103,-150.0,0.00027942,2]
[313978995,1707903051113,-150.0,0.00027942,2]
[313978996,1707903051123,-2892.80301746,0.00027954,2]
[313978998,1707903051132,-150.0,0.00027959,2]
[313979000,1707903051142,-150.0,0.00027959,2]
[313979002,1707903051151,-150.0,0.00027968,2]
[313979004,1707903051161,-400.0,0.0002797,2]
[313979006,1707903051171,-969.27668517,0.00028,2]
[313979008,1707903051182,-478198.97120689,0.00028,2]
[313979097,1707903052055,-2563.2,0.00028,2]
[313979101,1707903052079,-1363.79999999,0.00028,2]
[313979104,1707903052100,-8081.82094094,0.00028,2]
[313979319,1707903054197,-5096.7490414,0.00028,2]
[313979321,1707903054210,-1108.87164166,0.00028,2]
[313979324,1707903054224,-531.01608706,0.00028,2]
[313979367,1707903054627,316.66501366,0.000219,2]
[313979540,1707903057932,528.21829601,0.000219,2]
[313979541,1707903060849,1434.80780904,0.000219,5]
[313979543,1707903186482,2242.55888654,0.000219,2]
[313979544,1707903223351,200.0,0.00025754,120]
[313979545,1707903235177,184.05869594,0.00022198,30]
[313979546,1707903239402,500.0,0.000219,2]
[313979547,1707903239428,500.0,0.000219,2]
[313979548,1707903239454,28.65603993,0.000219,2]
[313979551,1707903255176,184.05869594,0.00022043,30]
[313979552,1707903273701,184.05869594,0.00022042,30]
[313979553,1707903291168,184.05869594,0.00022042,30]
[313979554,1707903309180,184.05869594,0.00022041,30]
[313979555,1707903327175,184.05869594,0.00022199,30]
[313979556,1707903347343,184.05869594,0.0002204,30]
[313979557,1707903363175,184.05869594,0.00022039,30]
[313979558,1707903379301,184.05869594,0.00022044,30]
[313979559,1707903381600,380.54,0.00019966,2]
[313979560,1707903389928,90.80396007,0.00021061,2]
[313979561,1707903389952,188.10527953,0.00021061,2]
[313979562,1707903397190,269.4669716,0.00021939,30]
[313979563,1707903405011,311.89472047,0.00021061,2]
[313979564,1707903405034,224.20653934,0.00021061,2]
[313979565,1707903405348,155.45028316,0.00019745,2]
[313979566,1707903409426,120.3431775,0.00021061,2]
[313979567,1707903409450,493.07367448,0.00021061,2]
[313979568,1707903411979,6.92632552,0.00021061,2]
[313979569,1707903412003,500.0,0.00021061,2]
[313979570,1707903412026,500.0,0.00021061,2]
[313979571,1707903412050,500.0,0.00021061,2]
[313979572,1707903412077,500.0,0.00021061,2]
[313979573,1707903412103,500.0,0.00021061,2]
[313979574,1707903412126,500.0,0.00021061,2]
[313979575,1707903412149,500.0,0.00021061,2]
[313979576,1707903412174,500.0,0.00021061,2]
[313979577,1707903412197,500.0,0.00021061,2]
[313979578,1707903412221,500.0,0.00021061,2]
[313979579,1707903412247,211.67114761,0.00021061,2]
[313979580,1707903412314,288.32885239,0.00020429,2]
[313979581,1707903412338,115.82119653,0.00020429,2]
[313979582,1707903413395,363.06160809,0.00021061,2]
[313979583,1707903419622,21.11719538,0.000214,2]
[313979584,1707903419646,139.97280462,0.000214,2]
[313979585,1707903422703,314.8868186,0.00021061,2]
[313979586,1707903422894,45.14037678,0.00021061,2]
[313979587,1707903422917,109.85962322,0.00021061,2]
[313979588,1707903424469,390.14037678,0.00021061,2]
[313979589,1707903424492,500.0,0.00021061,2]
[313979590,1707903424514,19.6174125,0.00021061,2]
[313979591,1707903425433,480.3825875,0.00021061,2]
[313979592,1707903425460,133.03426448,0.00021061,2]
[313979593,1707903426622,285.79621977,0.00021061,2]
[313979594,1707903427410,81.16951575,0.00021061,2]
[313979595,1707903427434,281.05870374,0.00021061,2]
[313979596,1707903427754,218.94129626,0.0002085,2]
[313979597,1707903427778,500.0,0.0002085,2]
[313979598,1707903427801,500.0,0.0002085,2]
[313979599,1707903427823,500.0,0.0002085,2]
[313979600,1707903427846,474.82814057,0.0002085,2]
[313979601,1707903429988,25.17185943,0.00021061,2]
[313979602,1707903430013,500.0,0.00021061,2]
[313979603,1707903430037,500.0,0.00021061,2]
[313979604,1707903430061,500.0,0.00021061,2]
[313979605,1707903430085,500.0,0.00021061,2]
[313979606,1707903430110,500.0,0.00021061,2]
[313979607,1707903430140,500.0,0.00021061,2]
[313979608,1707903430164,500.0,0.00021061,2]
[313979609,1707903430189,500.0,0.00021061,2]
[313979610,1707903430212,1193.4256137,0.00021061,2]
[313979611,1707903430270,404.15004892,0.00020429,2]
[313979612,1707903432955,156.31655214,0.0002106,2]
[313979613,1707903438446,415.75771074,0.00021061,2]
[313979614,1707903443433,422.29386275,0.00021061,2]
[313979615,1707903444475,713.19326199,0.00021061,2]
[313979616,1707903445756,2192.22396717,0.0002085,2]
[313979617,1707903446911,160.09175453,0.00021061,2]
[313979618,1707903447989,5218.59747313,0.00021061,2]
[313979619,1707903450266,404.15004892,0.00020429,2]
[313979620,1707903452851,316.9,0.000214,2]
[313979621,1707903465756,2193.76943683,0.0002085,2]
[313979622,1707903467727,691.56,0.00021317,2]
[313979623,1707903467989,1972.87878959,0.00021061,2]
[313979624,1707903470168,404.15004892,0.00020429,2]
[313979625,1707903485755,1984.69467883,0.0002085,2]
[313979626,1707903486207,404.15004892,0.00020429,2]
[313979627,1707903502644,537.65,0.0002118,2]
[313979628,1707903504157,518.2603136,0.00020429,2]
[313979629,1707903565391,22097.77,0.00021273,2]
[313979630,1707903567140,500.0,0.0002131,2]
[313979631,1707903583093,42502.29289934,0.00021,2]
[313979632,1707903637798,161.84558697,0.00021806,2]
[313979633,1707903638396,500.0,0.00021233,2]
[313979634,1707903639930,717.98271299,0.00021816,2]
[313979635,1707903668039,565.84,0.00021324,2]
[313979636,1707903668234,565.84,0.00021382,2]
[313979637,1707903668451,565.84,0.00021441,2]
[313979638,1707903668664,565.84,0.00021499,2]
[313979639,1707903668886,565.84,0.00021558,2]
[313979640,1707903669117,565.84,0.00021616,2]
[313979641,1707903669326,565.84,0.00021675,2]
[313979642,1707903669551,565.84,0.00021733,2]
[313979643,1707903669789,565.84,0.00021792,2]
[313979644,1707903669982,565.84,0.0002185,2]
[313979645,1707903691041,200.0,0.00021087,2]
[313979646,1707903700728,444.79,0.00021072,2]
[313979647,1707903715349,494.94082306,0.000219,2]
[313979648,1707903723261,280.95359764,0.000219,2]
[313979649,1707903731151,2000.0,0.00021087,2]
[313979650,1707903731259,5216.53502418,0.000219,2]
[313979651,1707903733795,524.83009847,0.000219,2]
[313979652,1707903739781,338.89802293,0.000219,2]
[313979653,1707903743519,5475.35088695,0.000219,2]
[313979654,1707903745592,200.0,0.00021087,2]
[313979655,1707903746284,1958.15673038,0.000219,2]
[313979656,1707903764856,478.65514198,0.00021818,2]
[313979657,1707903791148,213.55237275,0.000219,2]
[313979658,1707903817113,250.0,0.00021044,2]
[313979659,1707903850518,3392.6222,0.00021809,2]
[313979660,1707903853185,3246.25,0.00021038,2]
[313979661,1707903862111,1000.0,0.00021809,2]
[313979662,1707903879754,24484.38826566,0.000219,2]
[313979663,1707903880907,319.103428,0.00021818,2]
[313979664,1707903884962,-625.36007598,0.00021901,2]
[313979665,1707903884986,-7436.54734248,0.00021901,2]
[313979666,1707903885009,-188.4006881,0.00021901,2]
[313979667,1707903885030,-188.4006881,0.00021901,2]
[313979668,1707903885052,-300.0,0.00021901,2]
[313979669,1707903885074,-150.0,0.00021901,2]
[313979670,1707903885095,-280.44724446,0.00021903,2]
[313979671,1707903885306,-259.68018849,0.00021904,2]
[313979672,1707903885338,-690.44253496,0.00021907,2]
[313979673,1707903885359,-338.62618255,0.00021907,2]
[313979674,1707903885380,-944.30110339,0.00021907,2]
[313979675,1707903885401,-1530.65948634,0.00021907,2]
[313979676,1707903885422,-290.79172401,0.00021907,2]
[313979677,1707903885443,-396.5164583,0.00021908,2]
[313979678,1707903885467,-565.84,0.00021909,2]
[313979679,1707903885490,-178044.17088562,0.00021909,2]
[313979680,1707903885511,-250.0,0.00021918,2]
[313979681,1707903885534,-47481.67320901,0.0002193,2]
[313979682,1707903885561,-499.99,0.0002193,2]
[313979683,1707903885582,-480.7927428,0.0002194,2]
[313979684,1707903885602,-10600.2522601,0.00021941,2]
[313979685,1707903885624,-675.33,0.00021945,2]
[313979686,1707903885650,-2193.01,0.00021945,2]
[313979687,1707903885672,-1589.76,0.00021945,2]
[313979688,1707903885692,-906.69,0.00021945,2]
[313979689,1707903885712,-8375.7556,0.00021945,2]
[313979690,1707903885733,-319.10342798,0.00021959,2]
[313979691,1707903885756,-565.84,0.00021967,2]
[313979692,1707903885776,-273.46943053,0.00021976,2]
[313979693,1707903890618,381.83,0.00019734,2]
[313979694,1707903890824,381.83,0.00021998,2]
[313979695,1707903895712,12591.89365624,0.00021907,2]
[313979696,1707903902474,-267.86553876,0.00022002,2]
[313979697,1707903902496,-1889.27771131,0.00022003,2]
[313979698,1707903902519,-565.84,0.00022026,2]
[313979699,1707903902541,-2813.58550535,0.00022039,2]
[313979700,1707903902563,-261.48482609,0.00022039,2]
[313979701,1707903902584,-522.30728195,0.00022039,2]
[313979702,1707903902605,-155.16033818,0.00022039,2]
[313979703,1707903902625,-160.39810901,0.00022039,2]
[313979704,1707903902646,-360.40514062,0.00022039,2]
[313979705,1707903902667,-442.73246,0.00022039,2]
[313979706,1707903902689,-3644.9227114,0.0002204,2]
[313979707,1707903902710,-15420.24,0.0002204,2]
[313979708,1707903902731,-7869.556544,0.00022044,2]
[313979709,1707903902753,-17695.1027,0.00022046,2]
[313979710,1707903902776,-565.84,0.00022084,2]
[313979711,1707903902798,-360.2812,0.000221,2]
[313979712,1707903902820,-281.7472,0.000221,2]
[313979713,1707903902840,-1975.9218,0.000221,2]
[313979714,1707903902862,-319.10342798,0.000221,2]
[313979715,1707903902884,-565.84,0.00022143,2]
[313979716,1707903902904,-468.86466092,0.00022198,2]
[313979717,1707903902925,-490.79763394,0.00022198,2]
[313979718,1707903902946,-584.67973979,0.00022198,2]
[313979719,1707903902967,-7430.98034034,0.00022198,2]
[313979720,1707903902988,-16798.77290144,0.00022199,2]
[313979721,1707903903009,-30291.2173,0.000222,2]
[313979722,1707903903029,-100000.0,0.000222,2]
[313979723,1707903903050,-296.6922,0.000222,2]
[313979724,1707903903072,-565.84,0.00022201,2]
[313979725,1707903903093,-565.84,0.0002226,2]
[313979726,1707903903114,-800.0,0.00022274,2]
[313979727,1707903903134,-188.55456332,0.0002229,2]
[313979728,1707903903155,-316.3967,0.000223,2]
[313979729,1707903903175,-245000.0,0.000223,2]
[313979730,1707903903196,-565.84,0.00022318,2]
[313979731,1707903903217,-565.84,0.00022377,2]
[313979732,1707903903238,-565.84,0.00022435,2]
[313979733,1707903903259,-164.45,0.00022441,2]
[313979734,1707903903291,150.0,0.00022038,2]
[313979735,1707903911161,150.0,0.00022,2]
[313979736,1707903912999,4523.5128,0.00021809,2]
[313979737,1707903958342,2148.6257,0.00021801,2]
[313979738,1707903964314,97389.1504,0.00021809,2]
[313979739,1707903969002,103472.967,0.00021809,2]
[313979741,1707903995989,23620.2821,0.00021809,2]
[313979748,1707904134489,150.0,0.00025207,120]
[313979789,1707904235367,-159.8026386,0.00022552,2]
[313979791,1707904235378,-254.30183863,0.00022569,2]
[313979793,1707904235397,-460.83816137,0.00022569,2]
[313979794,1707904235408,-733.44,0.00022573,2]
[313979795,1707904235419,-724.93,0.00022578,2]
[313979796,1707904235430,-721.31,0.00022584,2]
[313979797,1707904235440,-731.74,0.00022591,2]
[313979798,1707904235451,-710.04,0.00022599,2]
[313979799,1707904235461,-713.06,0.0002261,2]
[313979800,1707904235471,-725.42,0.00022623,2]
[313979801,1707904235481,-737.46,0.00022638,2]
[313979802,1707904235492,-279.38796407,0.00022651,2]
[313979803,1707904235502,-5997.04,0.00022652,2]
[313979804,1707904235512,-247.33387509,0.00022652,2]
[313979805,1707904235525,-476.60612491,0.00022652,2]
[313979806,1707904235535,-471.43543858,0.00022652,2]
[313979807,1707904235641,-253.40456142,0.00022652,2]
[313979808,1707904235651,-735.84,0.00022652,2]
[313979809,1707904235661,-736.79,0.00022652,2]
[313979810,1707904235672,-734.08,0.00022652,2]
[313979811,1707904235682,-171.08,0.00022716,2]
[313979812,1707904235692,-444.79,0.00022716,2]
[313979813,1707904235703,-536.0,0.00022805,2]
[313979815,1707904235713,-1000.0,0.000229,2]
[313979817,1707904235723,-155.35432834,0.00022999,2]
[313979818,1707904235734,-382.84,0.00023,2]
[313979820,1707904235744,-103.53990119,0.00023666,2]
[313979822,1707904235757,-896.46009881,0.00023666,2]
[313979823,1707904235768,-537.65,0.00023828,2]
[313979825,1707904235777,-200.0,0.00024079,2]
[313979828,1707904235791,-1000.0,0.000241,2]
[313979829,1707904235801,-381.83,0.00024261,2]
[313979830,1707904235812,-444.79,0.0002436,2]
[313979831,1707904235823,-926.06505033,0.00024384,2]
[313979832,1707904235841,-1777.53494967,0.00024384,2]
[313979833,1707904235852,-1892.93,0.00024384,2]
[313979834,1707904235863,-683.87002651,0.00024399,2]
[313979835,1707904235874,-345.19549852,0.00024399,2]
[313979836,1707904235885,-773.53794397,0.00024399,2]
[313979837,1707904235896,-536.0,0.00024449,2]
[313979838,1707904235906,-1197.57158133,0.00024453,2]
[313979839,1707904235920,-449.52965599,0.00024453,2]
[313979840,1707904235951,-3945.39876268,0.00024453,2]
[313979841,1707904235963,-500.0,0.00024473,2]
[313979842,1707904235975,-1098.13378439,0.000246,4]
[313979843,1707904235986,-4151.26388392,0.000246,2]
[313979844,1707904236007,-667.00911059,0.000246,2]
[313979845,1707904236110,-14433.94680033,0.000246,2]
[313979846,1707904236122,-250.0,0.00024658,2]
[313979847,1707904236134,-1122.79557025,0.00024703,2]
[313979848,1707904236145,-1104.65045828,0.00024703,2]
[313979849,1707904236156,-159.80263857,0.00024705,2]
[313979850,1707904236167,-1250.0,0.00025,3]
[313979851,1707904236179,-155.0,0.00025,2]
[313979852,1707904236190,-150.0,0.00025,2]
[313979853,1707904236201,-209.0,0.00025101,2]
[313979854,1707904236212,-150.0,0.00025207,2]
[313979855,1707904236226,-2609.07512197,0.00025207,2]
[313979856,1707904236238,-512.26744547,0.00025207,2]
[313979857,1707904236249,-200.0,0.00025207,2]
[313979858,1707904236260,-4000.0,0.00025207,2]
[313979859,1707904236271,-200.0,0.00025296,2]
[313979860,1707904236282,-800.0,0.00025296,2]
[313979861,1707904236292,-200.0,0.00025296,2]
[313979862,1707904236303,-569.88,0.00025557,2]
[313979863,1707904236313,-150.75,0.00025601,2]
[313979864,1707904236328,-161.09,0.0002568,2]
[313979865,1707904236338,-250.0,0.00025731,2]
[313979866,1707904236349,-861.01914996,0.00025754,2]
[313979867,1707904236362,-1042.23038905,0.00025754,2]
[313979868,1707904236372,-338.73,0.00025763,2]
[313979869,1707904236383,-150.75,0.00025792,2]
[313979870,1707904236393,-150.75,0.00025982,2]
[313979871,1707904236404,-444.79,0.00026004,2]
[313979872,1707904236414,-536.0,0.00026093,2]
[313979873,1707904236425,-150.75,0.00026173,2]
[313979874,1707904236436,-150.75,0.00026364,2]
[313979875,1707904236447,-200.0,0.00026453,2]
[313979876,1707904236457,-537.65,0.00026475,2]
[313979877,1707904236468,-381.83,0.00026525,2]
[313979878,1707904236479,-150.75,0.00026554,2]
[313979879,1707904236489,-150.75,0.00026745,2]
[313979880,1707904236500,-173.15,0.00026751,2]
[313979881,1707904236510,-1000.0,0.000268,2]
[313979882,1707904236520,-159.80263857,0.00026858,2]
[313979883,1707904236530,-150.75,0.00026935,2]
[313979884,1707904236541,-1300.0,0.00027,3]
[313979885,1707904236799,-159.0,0.00027,2]
[313979886,1707904236808,-167.18,0.0002713,2]
[313979887,1707904236818,-20284.3612,0.00027297,2]
[313979888,1707904236830,-190.43139518,0.00027393,2]
[313979889,1707904236840,-25644.23947556,0.00027393,2]
[313979890,1707904236850,-156.10743605,0.00027394,2]
[313979891,1707904236860,-18720.26245093,0.00027395,4]
[313979892,1707904236870,-4651.87061363,0.00027395,2]
[313979893,1707904236879,-221.17327819,0.00027395,2]
[313979894,1707904236889,-611.05394389,0.00027396,2]
[313979895,1707904236898,-155.0,0.00027397,2]
[313979896,1707904236907,-1000.0,0.00027397,2]
[313979897,1707904236917,-1000.0,0.00027397,2]
[313979898,1707904236926,-1000.0,0.00027397,2]
[313979899,1707904236935,-1000.0,0.00027397,2]
[313979900,1707904236945,-1000.0,0.00027397,2]
[313979901,1707904236954,-1000.0,0.00027397,2]
[313979902,1707904236963,-1000.0,0.00027397,2]
[313979903,1707904236972,-1000.0,0.00027397,2]
[313979904,1707904236982,-1000.0,0.00027397,2]
[313979905,1707904236991,-1000.0,0.00027397,2]
[313979906,1707904237000,-1000.0,0.00027397,2]
[313979907,1707904237009,-1000.0,0.00027397,2]
[313979908,1707904237018,-1000.0,0.00027397,2]
[313979909,1707904237027,-1000.0,0.00027397,2]
[313979910,1707904237037,-1000.0,0.00027397,2]
[313979911,1707904237046,-1000.0,0.00027397,2]
[313979912,1707904237055,-1000.0,0.00027397,2]
[313979913,1707904237064,-1000.0,0.00027397,2]
[313979914,1707904237073,-1000.0,0.00027397,2]
[313979915,1707904237083,-1000.0,0.00027397,2]
[313979916,1707904237102,-851.0,0.00027397,2]
[313979917,1707904237115,-218.47,0.00027397,2]
[313979918,1707904237125,-1147.14166397,0.0002744,2]
[313979919,1707904237137,-170.82371551,0.000275,2]
[313979920,1707904237147,-218.47,0.00027556,2]
[313979921,1707904237158,-12389.23928515,0.00027582,2]
[313979922,1707904237168,-155.0,0.00027583,2]
[313979923,1707904237177,-358.62078167,0.00027583,2]
[313979924,1707904237187,-19102.0096647,0.00027583,2]
[313979925,1707904237199,-500.0,0.00027584,2]
[313979926,1707904237209,-500.0,0.00027584,2]
[313979927,1707904237219,-500.0,0.00027584,2]
[313979928,1707904237229,-500.0,0.00027584,2]
[313979929,1707904237239,-500.0,0.00027584,2]
[313979930,1707904237250,-500.0,0.00027584,2]
[313979931,1707904237260,-500.0,0.00027584,2]
[313979932,1707904237270,-500.0,0.00027584,2]
[313979933,1707904237281,-500.0,0.00027584,2]
[313979934,1707904237292,-500.0,0.00027584,2]
[313979935,1707904237302,-500.0,0.00027584,2]
[313979936,1707904237312,-500.0,0.00027584,2]
[313979937,1707904237326,-500.0,0.00027584,2]
[313979938,1707904237337,-500.0,0.00027584,2]
[313979939,1707904237349,-500.0,0.00027584,2]
[313979940,1707904237360,-500.0,0.00027584,2]
[313979941,1707904237370,-500.0,0.00027584,2]
[313979942,1707904237381,-500.0,0.00027584,2]
[313979943,1707904237392,-500.0,0.00027584,2]
[313979944,1707904237404,-500.0,0.00027584,2]
[313979945,1707904237415,-500.0,0.00027584,2]
[313979946,1707904237426,-500.0,0.00027584,2]
[313979947,1707904237437,-500.0,0.00027584,2]
[313979948,1707904237448,-500.0,0.00027584,2]
[313979949,1707904237459,-500.0,0.00027584,2]
[313979950,1707904237470,-500.0,0.00027584,2]
[313979951,1707904237482,-209.0,0.00027594,6]
[313979952,1707904237494,-1978.79020469,0.00027597,28]
[313979953,1707904237506,-444.79,0.00027648,2]
[313979954,1707904237517,-218.47,0.00027714,2]
[313979955,1707904237528,-150.0,0.00027727,2]
[313979956,1707904237539,-150.0,0.0002773,2]
[313979957,1707904237558,-150.0,0.0002773,2]
[313979958,1707904237570,-150.0,0.00027733,2]
[313979959,1707904237587,-150.0,0.00027735,2]
[313979960,1707904237600,-536.0,0.00027737,2]
[313979961,1707904237619,-150.0,0.00027737,2]
[313979962,1707904237632,-150.0,0.0002774,2]
[313979963,1707904237644,-500.0,0.00027744,2]
[313979964,1707904237657,-150.0,0.00027755,2]
[313979965,1707904237670,-150.0,0.0002776,2]
[313979966,1707904237682,-150.0,0.00027762,2]
[313979967,1707904237694,-150.0,0.00027764,2]
[313979968,1707904237706,-150.0,0.00027765,2]
[313979969,1707904237718,-150.0,0.0002777,2]
[313979970,1707904237729,-150.0,0.00027772,2]
[313979971,1707904237741,-150.0,0.00027775,2]
[313979972,1707904237753,-200.0,0.00027775,2]
[313979973,1707904237765,-800.0,0.00027775,2]
[313979974,1707904237776,-150.0,0.00027777,2]
[313979975,1707904237787,-222.08891468,0.00027777,2]
[313979976,1707904237798,-150.0,0.00027778,2]
[313979977,1707904237809,-150.0,0.00027783,2]
[313979978,1707904237826,-150.0,0.00027783,2]
[313979979,1707904237838,-150.0,0.00027785,2]
[313979980,1707904237849,-150.0,0.00027789,2]
[313979981,1707904237861,-150.0,0.00027797,2]
[313979982,1707904237872,-150.0,0.00027798,2]
[313979983,1707904237883,-150.0,0.00027798,2]
[313979984,1707904237893,-150.0,0.00027801,2]
[313979986,1707904237904,-1446.40150873,0.00027801,2]
[313979988,1707904237914,-150.0,0.00027804,2]
[313979989,1707904237925,-150.0,0.00027809,2]
[313979991,1707904237936,-150.0,0.00027823,2]
[313979992,1707904237946,-150.0,0.00027838,2]
[313979993,1707904237957,-150.0,0.00027847,2]
[313979994,1707904237967,-1000.0,0.0002786,2]
[313979995,1707904237978,-1000.0,0.0002786,2]
[313979996,1707904237988,-1000.0,0.0002786,2]
[313979997,1707904237998,-1000.0,0.0002786,2]
[313979998,1707904238008,-1000.0,0.0002786,2]
[313979999,1707904238019,-1000.0,0.0002786,2]
[313980001,1707904238030,-1000.0,0.0002786,2]
[313980003,1707904238040,-1000.0,0.0002786,2]
[313980005,1707904238051,-1000.0,0.0002786,2]
[313980007,1707904238064,-1000.0,0.0002786,2]
[313980009,1707904238078,-1000.0,0.0002786,2]
[313980012,1707904238088,-1000.0,0.0002786,2]
[313980014,1707904238098,-1000.0,0.0002786,2]
[313980016,1707904238108,-1000.0,0.0002786,2]
[313980017,1707904238118,-1000.0,0.0002786,2]
[313980018,1707904238128,-1000.0,0.0002786,2]
[313980019,1707904238138,-1000.0,0.0002786,2]
[313980020,1707904238148,-1000.0,0.0002786,2]
[313980021,1707904238158,-1000.0,0.0002786,2]
[313980022,1707904238168,-1000.0,0.0002786,2]
[313980023,1707904238178,-1000.0,0.0002786,2]
[313980024,1707904238188,-869.0007,0.0002786,2]
[313980025,1707904238198,-150.0,0.00027867,2]
[313980026,1707904238207,-150.0,0.00027868,2]
[313980027,1707904238217,-2984.31288954,0.00027872,6]
[313980028,1707904238226,-218.47,0.00027872,2]
[313980029,1707904238237,-150.0,0.00027875,2]
[313980030,1707904238247,-12047.28524851,0.00027898,2]
[313980031,1707904238256,-50104.86859542,0.00027899,2]
[313980032,1707904238267,-150.0,0.00027901,2]
[313980033,1707904238276,-300.0,0.00027912,2]
[313980034,1707904238286,-150.0,0.0002792,2]
[313980035,1707904238296,-150.0,0.0002792,2]
[313980036,1707904238306,-150.0,0.00027923,2]
[313980037,1707904238316,-569.43410317,0.00027931,2]
[313980038,1707904238329,-150.0,0.00027933,2]
[313980039,1707904238339,-150.0,0.00027933,2]
[313980040,1707904238349,-150.0,0.00027952,2]
[313980041,1707904238358,-150.0,0.00027966,2]
[313980042,1707904238369,-150.0,0.00027982,2]
[313980043,1707904238382,-1000.0,0.00027983,7]
[313980044,1707904238392,-150.0,0.00027983,2]
[313980045,1707904238402,-1000.0,0.00027983,7]
[313980046,1707904238412,-1000.0,0.00027983,7]
[313980047,1707904238422,-150.0,0.00027991,2]
[313980048,1707904238432,-162.40536348,0.00027997,2]
[313980049,1707904238442,-2001.72165411,0.00027998,6]
[313980050,1707904238451,-320.47611314,0.00027998,2]
[313980051,1707904238461,-157.29199464,0.00027998,2]
[313980052,1707904238472,-159.6500011,0.00027998,2]
[313980053,1707904238482,-155.18565292,0.00027998,2]
[313980054,1707904238492,-754.16754974,0.00027998,2]
[313980055,1707904238502,-155.0,0.00027998,2]
[313980056,1707904238512,-343.67154085,0.00027998,2]
[313980057,1707904238522,-330.97423961,0.00027998,2]
[313980058,1707904238532,-160.12090131,0.00027999,2]
[313980059,1707904238542,-11887.83583919,0.00027999,2]
[313980060,1707904238554,-436.95410203,0.00027999,2]
[313980061,1707904238564,-113545.85243821,0.00028,2]
[313980062,1707904238575,-1000.0,0.00028,7]
[313980064,1707904238585,-969.27668517,0.00028,2]
[313980066,1707904238595,-2000.0,0.00028,2]
[313980067,1707904238608,-200.0,0.00028,2]
[313980068,1707904238620,-200.0,0.00028,2]
[313980069,1707904238630,-150.0,0.00028,2]
[313980070,1707904238641,-1403.81302003,0.00028,2]
[313980071,1707904238651,-673.9096279,0.00028011,2]
[313980073,1707904238661,-21798.4543844,0.00028011,2]
[313980075,1707904238671,-879.09056583,0.00028011,2]
[313980077,1707904238681,-218.47,0.0002803,2]
[313980079,1707904238692,-177.3,0.000281,2]
[313980081,1707904238702,-218.47,0.00028189,2]
[313980083,1707904238713,-453.0,0.000282,2]
[313980085,1707904238723,-17639.9295607,0.000282,2]
[313980087,1707904238733,-152.0,0.00028306,4]